fUSD/lending_fUSD_20240607
["ID","MTS","AMOUNT","RATE_DAILY","PERIOD"]
[328750236,1717765771643,226.6238354,0.000201,2]
[328750237,1717765779340,375.0,0.0002836,120]
[328750238,1717765787634,226.6238354,0.00022499,2]
[328750239,1717765806823,-167.34,0.00026903,2]
[328750240,1717765806848,-167.34,0.00026974,2]
[328750241,1717765806871,-758.24390293,0.00026998,2]
[328750242,1717765806893,-1300.0,0.00027,2]
[328750243,1717765806920,-167.34,0.00027044,2]
[328750244,1717765806943,-205.94174335,0.00027389,2]
[328750245,1717765806965,-809.5948544,0.0002739,2]
[328750246,1717765806987,-260.5,0.00027631,2]
[328750247,1717765807011,-168.82,0.00027632,2]
[328750248,1717765807033,-181.17228,0.00027732,2]
[328750249,1717765807056,-173.341279,0.00027732,2]
[328750250,1717765807078,-2149.114119,0.00027732,2]
[328750251,1717765807099,-168.96227,0.00027732,2]
[328750252,1717765807121,-565.428812,0.00027732,2]
[328750253,1717765807143,-176.335226,0.00027732,2]
[328750254,1717765807169,-168.227442,0.00027732,2]
[328750255,1717765807192,-181.172279,0.00027732,2]
[328750256,1717765807214,-181.172279,0.00027732,2]
[328750257,1717765807236,-194.099648,0.00027732,2]
[328750258,1717765807262,-177.527736,0.00027732,2]
[328750259,1717765807285,-3060.67688,0.00027732,2]
[328750260,1717765807314,-303.15007,0.00027732,2]
[328750261,1717765807338,-5242.034943,0.00027732,2]
[328750262,1717765807360,-214.496612,0.00027732,2]
[328750263,1717765807382,-6777.347908,0.00027732,2]
[328750264,1717765807405,-358.0,0.00027734,2]
[328750265,1717765807425,-1648.0,0.00027734,2]
[328750266,1717765807447,-291.074,0.00027734,2]
[328750267,1717765807470,-263.438,0.00027734,2]
[328750268,1717765807492,-446.0,0.00027734,2]
[328750269,1717765807629,226.6238354,0.00022499,2]
[328750270,1717765827645,226.6238354,0.00022499,2]
[328750274,1717765832462,-169.16,0.00027806,2]
[328750275,1717765832472,-196.139912,0.00027898,2]
[328750276,1717765832483,-175.859741,0.00027898,2]
[328750277,1717765832492,-149.04034705,0.00028079,2]
[328750278,1717765832504,-826.29867666,0.00028079,2]
[328750279,1717765832516,-1173.77509529,0.00028079,2]
[328750280,1717765832526,-565.428812,0.00028079,2]
[328750281,1717765832536,-181.172279,0.00028079,2]
[328750282,1717765832545,-177.527736,0.00028079,2]
[328750283,1717765832555,-3060.67688,0.00028079,2]
[328750284,1717765832565,-303.15007,0.00028079,2]
[328750285,1717765832575,-5242.034943,0.00028079,2]
[328750286,1717765832584,-214.496612,0.00028079,2]
[328750287,1717765832594,-362.27648111,0.00028079,2]
[328750288,1717765832605,-6415.07142689,0.00028079,2]
[328750289,1717765832615,-250.0,0.00028194,2]
[328750290,1717765832624,-152.63,0.00028356,2]
[328750291,1717765832634,-500.0,0.00028392,8]
[328750292,1717765832643,-500.0,0.00028397,8]
[328750293,1717765832653,-500.0,0.00028405,8]
[328750294,1717765832663,-181.172279,0.00028426,2]
[328750295,1717765832674,-2149.114119,0.00028426,2]
[328750296,1717765832683,-565.428812,0.00028426,2]
[328750297,1717765832692,-22.7863267,0.00028426,2]
[328750298,1717765832713,-158.3859523,0.00028426,2]
[328750299,1717765832723,-177.527736,0.00028426,2]
[328750300,1717765832732,-323.5563117,0.00028426,2]
[328750301,1717765832747,-2737.1205683,0.00028426,2]
[328750302,1717765832756,-303.15007,0.00028426,2]
[328750303,1717765832766,-5242.034943,0.00028426,2]
[328750304,1717765832776,-214.496612,0.00028426,2]
[328750305,1717765832785,-6777.347908,0.00028426,2]
[328750306,1717765832795,-520.93,0.00028483,2]
[328750307,1717765832805,-6465.51217879,0.000285,3]
[328750308,1717765832814,-537.57,0.00028663,2]
[328750309,1717765832824,-19686.73798443,0.000287,2]
[328750310,1717765832834,-171.93,0.00028752,2]
[328750311,1717765832843,-2149.114119,0.00028772,2]
[328750312,1717765832852,-565.428812,0.00028772,2]
[328750313,1717765832862,-181.172279,0.00028772,2]
[328750314,1717765832872,-177.527736,0.00028772,2]
[328750315,1717765832881,-3060.67688,0.00028772,2]
[328750316,1717765832891,-303.15007,0.00028772,2]
[328750317,1717765832901,-5242.034943,0.00028772,2]
[328750318,1717765832910,-214.496612,0.00028772,2]
[328750319,1717765832920,-6777.347908,0.00028772,2]
[328750320,1717765832930,-1000.0,0.00028896,2]
[328750321,1717765832940,-752.193,0.00028917,2]
[328750322,1717765832949,-1451.082,0.00028917,2]
[328750323,1717765832959,-815.99119181,0.00028988,2]
[328750324,1717765832968,-164.84,0.0002899,3]
[328750326,1717765832978,-265.97843345,0.0002899,2]
[328750328,1717765832988,-2500.0,0.00028998,2]
[328750330,1717765832997,-3628.1085,0.00028998,2]
[328750332,1717765833007,-1350.0,0.00029,2]
[328750334,1717765833016,-831.76,0.00029041,2]
[328750336,1717765833025,-873.01,0.00029041,2]
[328750338,1717765833035,-873.01,0.00029041,2]
[328750339,1717765833044,-871.07,0.00029041,2]
[328750340,1717765833054,-279.9,0.00029088,10]
[328750341,1717765833063,-815.9911918,0.00029089,15]
[328750342,1717765833072,-130376.813,0.00029098,2]
[328750343,1717765833082,-176.335226,0.00029119,2]
[328750344,1717765833091,-168.227442,0.00029119,2]
[328750345,1717765833101,-181.172279,0.00029119,2]
[328750346,1717765833111,-194.099648,0.00029119,2]
[328750347,1717765833120,-2149.114119,0.00029119,2]
[328750348,1717765833129,-565.428812,0.00029119,2]
[328750349,1717765833138,-181.172279,0.00029119,2]
[328750350,1717765833148,-177.527736,0.00029119,2]
[328750351,1717765833157,-3060.67688,0.00029119,2]
[328750352,1717765833166,-303.15007,0.00029119,2]
[328750353,1717765833177,-5242.034943,0.00029119,2]
[328750354,1717765833186,-214.496612,0.00029119,2]
[328750355,1717765833196,-6777.347908,0.00029119,2]
[328750356,1717765833205,-161.23,0.00029168,2]
[328750357,1717765833214,-150.0,0.00029178,2]
[328750358,1717765833224,-526.07,0.00029178,2]
[328750359,1717765833233,-150.0,0.00029178,2]
[328750360,1717765833243,-845.12,0.00029178,2]
[328750362,1717765833252,-526.07,0.00029178,2]
[328750363,1717765833265,-333.96,0.00029178,2]
[328750364,1717765833275,-306.68,0.00029178,2]
[328750365,1717765833285,-526.07,0.00029178,2]
[328750366,1717765833295,-150.0,0.00029178,2]
[328750367,1717765833305,-815.9911918,0.00029191,15]
[328750368,1717765833315,-4611.29048525,0.00029198,2]
[328750369,1717765833325,-815.9911918,0.00029292,15]
[328750370,1717765833335,-243.37310162,0.00029342,2]
[328750371,1717765833346,-151.5237495,0.00029357,2]
[328750372,1717765833359,-151.5237495,0.00029374,2]
[328750373,1717765833370,-155.23233246,0.00029383,2]
[328750374,1717765833379,-150.89346556,0.00029387,2]
[328750375,1717765833389,-156.84533381,0.0002939,2]
[328750376,1717765833399,-815.9911918,0.00029393,15]
[328750377,1717765833409,-280.81406261,0.00029398,2]
[328750378,1717765833418,-243.37310162,0.00029411,2]
[328750379,1717765833431,-150.89346556,0.00029442,2]
[328750380,1717765833441,-150.0,0.00029452,2]
[328750381,1717765833451,-243.37310162,0.00029459,2]
[328750382,1717765833461,-166.66666668,0.00029464,2]
[328750383,1717765833470,-815.9911918,0.00029495,15]
[328750384,1717765833480,-150.0,0.000295,2]
[328750385,1717765833490,-274.77617008,0.00029511,2]
[328750386,1717765833500,-243.37310162,0.00029533,2]
[328750387,1717765833509,-155.23233246,0.00029538,2]
[328750388,1717765833519,-168.59850175,0.00029548,2]
[328750389,1717765833529,-154.48393235,0.0002956,2]
[328750390,1717765833538,-274.77617008,0.00029583,2]
[328750391,1717765833548,-815.9911918,0.00029596,15]
[328750392,1717765833558,-1650.14283679,0.000296,2]
[328750393,1717765833568,-154.48393235,0.00029647,2]
[328750394,1717765833578,-324.45305256,0.00029663,2]
[328750395,1717765833589,-564.9058,0.00029663,2]
[328750396,1717765833599,-66429.5533,0.00029663,2]
[328750397,1717765833609,-7500.0,0.00029663,2]
[328750398,1717765833619,-500.0,0.00029667,2]
[328750399,1717765833630,-200.0,0.00029667,2]
[328750400,1717765833640,-166.73198776,0.00029676,2]
[328750401,1717765833650,-467.95908505,0.00029681,2]
[328750402,1717765833660,-151.5237495,0.00029682,2]
[328750403,1717765833670,-3000.0,0.0002969,2]
[328750404,1717765833680,-815.9911918,0.00029697,15]
[328750405,1717765833690,-412.45466168,0.00029698,2]
[328750406,1717765833698,-310.12134563,0.00029698,2]
[328750407,1717765833708,-153.0,0.00029699,5]
[328750408,1717765833719,-154.48393235,0.00029709,2]
[328750409,1717765833729,-156.39326283,0.00029711,2]
[328750410,1717765833740,-151.5237495,0.00029719,2]
[328750411,1717765833750,-324.45305256,0.00029722,2]
[328750412,1717765833759,-500.0,0.00029762,4]
[328750413,1717765833769,-500.0,0.00029762,4]
[328750414,1717765833780,-195.66906048,0.00029762,2]
[328750415,1717765833790,-4792.32463648,0.00029763,2]
[328750416,1717765833799,-215.86454248,0.00029763,2]
[328750417,1717765833808,-1000.0,0.00029763,2]
[328750418,1717765833818,-1000.0,0.00029763,2]
[328750419,1717765833827,-1000.0,0.00029763,2]
[328750420,1717765833837,-1000.0,0.00029763,2]
[328750421,1717765833846,-1000.0,0.00029763,2]
[328750422,1717765833856,-1000.0,0.00029763,2]
[328750423,1717765833865,-1000.0,0.00029763,2]
[328750424,1717765833875,-1000.0,0.00029763,2]
[328750425,1717765833885,-1000.0,0.00029763,2]
[328750426,1717765833894,-1000.0,0.00029763,2]
[328750427,1717765833904,-1000.0,0.00029763,2]
[328750428,1717765833913,-1000.0,0.00029763,2]
[328750429,1717765833923,-1000.0,0.00029763,2]
[328750430,1717765833933,-1000.0,0.00029763,2]
[328750431,1717765833943,-1000.0,0.00029763,2]
[328750432,1717765833952,-1000.0,0.00029763,2]
[328750433,1717765833962,-1000.0,0.00029763,2]
[328750434,1717765833972,-1000.0,0.00029763,2]
[328750435,1717765833982,-650.0,0.00029763,2]
[328750436,1717765833991,-143638.6028,0.00029763,2]
[328750437,1717765834000,-1071.5974,0.00029763,2]
[328750438,1717765834010,-11270.9377,0.00029763,2]
[328750439,1717765834020,-497.8815,0.00029763,2]
[328750440,1717765834030,-1000.0,0.00029763,2]
[328750441,1717765834040,-156.39326283,0.00029765,2]
[328750442,1717765834050,-7298.8961,0.00029768,2]
[328750443,1717765834059,-1000.0,0.00029768,2]
[328750444,1717765834069,-603.79614279,0.0002977,2]
[328750445,1717765834079,-500.0,0.00029771,4]
[328750446,1717765834088,-36139.7729,0.00029772,2]
[328750447,1717765834098,-6476.96539751,0.00029772,2]
[328750448,1717765834112,-833.79793316,0.00029772,2]
[328750449,1717765834124,-318.86689986,0.00029772,2]
[328750450,1717765834136,-331.9629089,0.00029772,2]
[328750451,1717765834148,-3006.27280344,0.00029772,2]
[328750452,1717765834160,-12023.74475721,0.00029772,2]
[328750453,1717765834182,-505.38615579,0.00029772,2]
[328750454,1717765834194,-2850.08,0.00029772,2]
[328750455,1717765834205,-266.34568794,0.00029772,2]
[328750456,1717765834217,-472.16969293,0.00029772,2]
[328750457,1717765834238,-1800.0,0.00029772,2]
[328750461,1717765839357,-1000.0,0.00028834,2]
[328750462,1717765839366,-17968.72153743,0.00029772,2]
[328750463,1717765839391,-384.59479513,0.00029772,2]
[328750464,1717765839402,-6088.37639685,0.00029772,2]
[328750465,1717765839415,-3534.65581913,0.00029772,2]
[328750466,1717765839427,-1400.60320971,0.00029772,2]
[328750467,1717765839439,-27902.42344949,0.00029772,2]
[328750468,1717765839459,-2361.92868909,0.00029772,2]
[328750469,1717765839474,-6382.90806643,0.00029772,2]
[328750470,1717765839484,-4792.3246364,0.00029775,2]
[328750471,1717765839494,-324.45305256,0.00029782,2]
[328750472,1717765839504,-215.86454242,0.00029786,2]
[328750473,1717765839514,-4792.3246364,0.00029788,2]
[328750474,1717765839524,-161.23,0.0002979,2]
[328750475,1717765839534,-150.0,0.00029793,2]
[328750476,1717765839544,-153.56866907,0.00029796,2]
[328750477,1717765839554,-815.9911918,0.00029799,15]
[328750478,1717765839564,-5916.969507,0.000298,2]
[328750479,1717765839574,-4792.3246364,0.000298,2]
[328750480,1717765839584,-215.86454242,0.00029809,2]
[328750481,1717765839593,-155.23233246,0.00029811,2]
[328750482,1717765839603,-322.90445637,0.00029813,2]
[328750487,1717765841229,-1020.70528083,0.00029813,2]
[328750488,1717765842107,-320.8833932,0.00029767,2]
[328750489,1717765842116,-3327.3166066,0.00029813,2]
[328750490,1717765842128,-121.3982926,0.00029813,2]
[328750491,1717765842138,-396.68976864,0.00029825,2]
[328750492,1717765842149,-395.93778896,0.00029825,2]
[328750493,1717765842290,-217.18609007,0.00029767,2]
[328750494,1717765842300,-3999.6970788,0.00029825,2]
[328750495,1717765842310,-215.86454242,0.00029832,2]
[328750496,1717765842320,-243.37310162,0.00029834,2]
[328750497,1717765842329,-155.97411761,0.00029834,2]
[328750498,1717765842339,-4792.3246364,0.00029838,2]
[328750499,1717765842352,-324.45305256,0.00029841,2]
[328750500,1717765842362,-500.0,0.00029843,2]
[328750501,1717765842372,-500.0,0.00029843,2]
[328750502,1717765842381,-500.0,0.00029843,2]
[328750503,1717765842390,-500.0,0.00029843,2]
[328750504,1717765842399,-500.0,0.00029843,2]
[328750505,1717765842409,-354.2815,0.00029843,2]
[328750506,1717765842418,-1000.0,0.00029843,2]
[328750507,1717765842427,-1000.0,0.00029843,2]
[328750508,1717765842437,-1000.0,0.00029843,2]
[328750509,1717765842446,-1000.0,0.00029843,2]
[328750510,1717765842456,-1000.0,0.00029843,2]
[328750511,1717765842465,-1000.0,0.00029843,2]
[328750512,1717765842475,-1000.0,0.00029843,2]
[328750513,1717765842484,-1000.0,0.00029843,2]
[328750514,1717765842494,-1000.0,0.00029843,2]
[328750515,1717765842503,-1000.0,0.00029843,2]
[328750516,1717765842513,-466.8347,0.00029843,2]
[328750517,1717765842522,-243.37310162,0.00029848,2]
[328750518,1717765842532,-4792.3246364,0.0002985,2]
[328750519,1717765842542,-283.89551999,0.00029853,2]
[328750520,1717765842551,-152.69,0.00029853,2]
[328750521,1717765842561,-215.86454242,0.00029854,2]
[328750522,1717765842570,-813.59742484,0.00029858,4]
[328750523,1717765842580,-890.6642126,0.0002986,2]
[328750524,1717765842589,-164.5855382,0.00029862,2]
[328750525,1717765842599,-555.46,0.00029862,4]
[328750526,1717765842608,-4792.3246364,0.00029863,2]
[328750527,1717765842618,-254.0,0.00029863,2]
[328750528,1717765842627,-500.0,0.00029863,4]
[328750529,1717765842636,-500.0,0.00029863,4]
[328750530,1717765842646,-500.0,0.00029863,4]
[328750531,1717765842655,-500.0,0.00029863,4]
[328750532,1717765842664,-500.0,0.00029863,4]
[328750533,1717765842674,-500.0,0.00029863,4]
[328750534,1717765842684,-500.0,0.00029863,4]
[328750535,1717765842693,-500.0,0.00029863,4]
[328750536,1717765842702,-170.383483,0.00029863,4]
[328750537,1717765842711,-558.10370223,0.00029863,4]
[328750538,1717765842721,-500.0,0.00029863,4]
[328750539,1717765842730,-509.13716905,0.00029863,4]
[328750540,1717765842740,-500.0,0.00029863,4]
[328750541,1717765842749,-500.0,0.00029863,4]
[328750542,1717765842758,-500.0,0.00029863,4]
[328750543,1717765842767,-511.37006179,0.00029863,4]
[328750544,1717765842776,-500.0,0.00029863,4]
[328750545,1717765842786,-500.0,0.00029863,4]
[328750546,1717765842795,-500.0,0.00029863,4]
[328750547,1717765842804,-500.0,0.00029863,4]
[328750548,1717765842814,-500.0,0.00029863,4]
[328750549,1717765842824,-500.0,0.00029863,4]
[328750550,1717765842833,-500.0,0.00029863,4]
[328750551,1717765842842,-500.0,0.00029863,4]
[328750552,1717765842851,-500.0,0.00029863,4]
[328750553,1717765842861,-243.3,0.00029863,4]
[328750554,1717765842871,-500.0,0.00029863,4]
[328750555,1717765842880,-500.0,0.00029863,4]
[328750556,1717765842890,-500.0,0.00029863,4]
[328750557,1717765842899,-500.0,0.00029863,4]
[328750558,1717765842908,-500.0,0.00029863,4]
[328750559,1717765842918,-500.0,0.00029863,4]
[328750560,1717765842928,-500.0,0.00029863,4]
[328750561,1717765842938,-500.0,0.00029863,4]
[328750562,1717765842948,-500.0,0.00029863,4]
[328750563,1717765842957,-500.0,0.00029863,4]
[328750564,1717765842966,-500.0,0.00029863,4]
[328750565,1717765842975,-500.0,0.00029863,4]
[328750566,1717765842985,-500.0,0.00029863,4]
[328750567,1717765842995,-500.0,0.00029863,4]
[328750568,1717765843004,-520.11397097,0.00029863,4]
[328750569,1717765843013,-500.0,0.00029863,4]
[328750570,1717765843023,-500.0,0.00029863,4]
[328750571,1717765843032,-500.0,0.00029863,4]
[328750572,1717765843042,-500.0,0.00029863,4]
[328750574,1717765843051,-500.0,0.00029863,4]
[328750575,1717765843060,-500.0,0.00029863,4]
[328750576,1717765843070,-500.0,0.00029863,4]
[328750577,1717765843079,-500.0,0.00029863,4]
[328750578,1717765843088,-500.0,0.00029863,4]
[328750580,1717765843097,-500.0,0.00029863,4]
[328750582,1717765843106,-500.0,0.00029863,4]
[328750584,1717765843115,-500.0,0.00029863,4]
[328750586,1717765843124,-500.0,0.00029863,4]
[328750587,1717765843134,-500.0,0.00029863,4]
[328750588,1717765843143,-500.0,0.00029863,4]
[328750589,1717765843152,-569.64,0.00029863,4]
[328750590,1717765843161,-500.0,0.00029863,4]
[328750591,1717765843171,-500.0,0.00029863,4]
[328750592,1717765843180,-500.0,0.00029863,4]
[328750593,1717765843189,-500.0,0.00029863,4]
[328750594,1717765843199,-500.0,0.00029863,4]
[328750595,1717765843209,-500.0,0.00029863,4]
[328750597,1717765843218,-500.0,0.00029863,4]
[328750599,1717765843227,-445.1,0.00029863,4]
[328750600,1717765843236,-500.0,0.00029863,4]
[328750602,1717765843246,-500.0,0.00029863,4]
[328750604,1717765843255,-500.0,0.00029863,4]
[328750606,1717765843270,-197.46231177,0.00029863,4]
[328750608,1717765843279,-500.0,0.00029863,4]
[328750610,1717765843288,-500.0,0.00029863,4]
[328750612,1717765843297,-500.0,0.00029863,4]
[328750614,1717765843307,-500.0,0.00029863,4]
[328750616,1717765843316,-500.0,0.00029863,4]
[328750618,1717765843325,-500.0,0.00029863,4]
[328750620,1717765843334,-500.0,0.00029863,4]
[328750622,1717765843344,-500.0,0.00029863,4]
[328750624,1717765843354,-500.0,0.00029863,4]
[328750625,1717765843363,-500.0,0.00029863,4]
[328750627,1717765843373,-500.0,0.00029863,4]
[328750629,1717765843382,-500.0,0.00029863,4]
[328750632,1717765843391,-230.37,0.00029863,4]
[328750635,1717765843400,-500.0,0.00029863,4]
[328750637,1717765843409,-500.0,0.00029863,4]
[328750640,1717765843418,-500.0,0.00029863,4]
[328750643,1717765843427,-500.0,0.00029863,4]
[328750646,1717765843438,-500.0,0.00029863,4]
[328750649,1717765843448,-500.0,0.00029863,4]
[328750652,1717765843458,-500.0,0.00029863,4]
[328750655,1717765843467,-500.0,0.00029863,4]
[328750658,1717765843477,-500.0,0.00029863,4]
[328750661,1717765843486,-500.0,0.00029863,4]
[328750664,1717765843495,-500.0,0.00029863,4]
[328750666,1717765843504,-500.0,0.00029863,4]
[328750669,1717765843513,-500.0,0.00029863,4]
[328750673,1717765843522,-500.0,0.00029863,4]
[328750676,1717765843532,-500.0,0.00029863,4]
[328750680,1717765843541,-500.0,0.00029863,4]
[328750683,1717765843551,-500.0,0.00029863,4]
[328750686,1717765843560,-500.0,0.00029863,4]
[328750687,1717765843569,-500.0,0.00029863,4]
[328750689,1717765843578,-500.0,0.00029863,4]
[328750691,1717765843587,-500.0,0.00029863,4]
[328750693,1717765843597,-468.87,0.00029863,4]
[328750695,1717765843606,-500.0,0.00029863,4]
[328750697,1717765843615,-500.0,0.00029863,4]
[328750699,1717765843624,-507.33899529,0.00029863,4]
[328750701,1717765843633,-500.0,0.00029863,4]
[328750703,1717765843642,-1000.0,0.00029863,5]
[328750704,1717765843651,-1000.0,0.00029863,5]
[328750706,1717765843659,-500.0,0.00029863,4]
[328750708,1717765843669,-500.0,0.00029863,4]
[328750710,1717765843681,-441.87082255,0.00029863,4]
[328750712,1717765843690,-500.0,0.00029863,4]
[328750714,1717765843699,-500.0,0.00029863,4]
[328750716,1717765843709,-500.0,0.00029863,4]
[328750718,1717765843718,-564.82,0.00029863,4]
[328750720,1717765843728,-500.0,0.00029863,4]
[328750722,1717765843737,-500.0,0.00029863,4]
[328750724,1717765843747,-500.0,0.00029863,4]
[328750726,1717765843756,-500.0,0.00029863,4]
[328750728,1717765843765,-500.0,0.00029863,4]
[328750730,1717765843775,-500.0,0.00029863,4]
[328750732,1717765843785,-500.0,0.00029863,4]
[328750733,1717765843794,-500.0,0.00029863,4]
[328750734,1717765843804,-500.0,0.00029863,4]
[328750735,1717765843813,-500.0,0.00029863,4]
[328750736,1717765843822,-500.0,0.00029863,4]
[328750737,1717765843832,-500.0,0.00029863,4]
[328750738,1717765843841,-501.7934439,0.00029863,4]
[328750739,1717765843851,-500.0,0.00029863,4]
[328750740,1717765843860,-500.0,0.00029863,4]
[328750741,1717765843870,-500.0,0.00029863,4]
[328750742,1717765843880,-365.2944035,0.00029863,4]
[328750743,1717765843889,-500.0,0.00029863,4]
[328750744,1717765843898,-500.0,0.00029863,4]
[328750745,1717765843907,-500.0,0.00029863,4]
[328750746,1717765843916,-500.0,0.00029863,4]
[328750747,1717765843925,-500.0,0.00029863,4]
[328750748,1717765843936,-500.0,0.00029863,4]
[328750749,1717765843945,-500.0,0.00029863,4]
[328750750,1717765843954,-500.0,0.00029863,4]
[328750751,1717765843964,-500.0,0.00029863,4]
[328750752,1717765843973,-182.87386073,0.00029863,4]
[328750753,1717765843982,-500.0,0.00029863,4]
[328750754,1717765843992,-500.0,0.00029863,4]
[328750755,1717765844002,-500.0,0.00029863,4]
[328750756,1717765844012,-500.0,0.00029863,4]
[328750757,1717765844022,-500.0,0.00029863,4]
[328750758,1717765844033,-381.17876316,0.00029863,4]
[328750759,1717765844043,-275.59227289,0.00029863,4]
[328750760,1717765844052,-500.0,0.00029863,4]
[328750761,1717765844062,-500.0,0.00029863,4]
[328750762,1717765844072,-500.0,0.00029863,4]
[328750763,1717765844082,-500.0,0.00029863,4]
[328750764,1717765844091,-500.0,0.00029863,4]
[328750765,1717765844101,-233.18686633,0.00029863,4]
[328750766,1717765844111,-500.0,0.00029863,4]
[328750767,1717765844120,-500.0,0.00029863,4]
[328750768,1717765844130,-500.0,0.00029863,4]
[328750769,1717765844142,-500.0,0.00029863,4]
[328750770,1717765844151,-500.0,0.00029863,4]
[328750771,1717765844160,-500.0,0.00029863,4]
[328750772,1717765844171,-195.09436416,0.00029863,4]
[328750773,1717765844182,-500.0,0.00029863,4]
[328750774,1717765844191,-500.0,0.00029863,4]
[328750775,1717765844199,-500.0,0.00029863,4]
[328750776,1717765844208,-500.0,0.00029863,4]
[328750777,1717765844217,-456.48,0.00029863,4]
[328750778,1717765844227,-500.0,0.00029863,4]
[328750779,1717765844236,-500.0,0.00029863,4]
[328750780,1717765844245,-500.0,0.00029863,4]
[328750781,1717765844255,-500.0,0.00029863,4]
[328750782,1717765844266,-500.0,0.00029863,4]
[328750783,1717765844277,-500.0,0.00029863,4]
[328750784,1717765844287,-500.0,0.00029863,4]
[328750785,1717765844296,-500.0,0.00029863,4]
[328750786,1717765844306,-500.0,0.00029863,4]
[328750787,1717765844316,-500.0,0.00029863,4]
[328750788,1717765844325,-500.0,0.00029863,4]
[328750789,1717765844334,-500.0,0.00029863,4]
[328750790,1717765844345,-500.0,0.00029863,4]
[328750791,1717765844354,-500.0,0.00029863,4]
[328750792,1717765844364,-500.0,0.00029863,4]
[328750793,1717765844373,-500.0,0.00029863,4]
[328750794,1717765844382,-500.0,0.00029863,4]
[328750795,1717765844392,-500.0,0.00029863,4]
[328750796,1717765844401,-500.0,0.00029863,4]
[328750797,1717765844411,-547.25563488,0.00029863,4]
[328750798,1717765844420,-500.0,0.00029863,4]
[328750799,1717765844431,-500.0,0.00029863,4]
[328750800,1717765844442,-500.0,0.00029863,4]
[328750801,1717765844451,-500.0,0.00029863,4]
[328750802,1717765844460,-500.0,0.00029863,4]
[328750803,1717765844470,-500.0,0.00029863,4]
[328750804,1717765844480,-500.0,0.00029863,4]
[328750805,1717765844490,-500.0,0.00029863,4]
[328750806,1717765844499,-500.0,0.00029863,4]
[328750807,1717765844509,-500.0,0.00029863,4]
[328750808,1717765844518,-500.0,0.00029863,4]
[328750809,1717765844528,-500.0,0.00029863,4]
[328750810,1717765844538,-500.0,0.00029863,4]
[328750811,1717765844548,-500.0,0.00029863,4]
[328750812,1717765844558,-494.02,0.00029863,4]
[328750813,1717765844567,-500.0,0.00029863,4]
[328750814,1717765844577,-500.0,0.00029863,4]
[328750815,1717765844587,-500.0,0.00029863,4]
[328750816,1717765844596,-500.0,0.00029863,4]
[328750817,1717765844605,-500.0,0.00029863,4]
[328750818,1717765844615,-500.0,0.00029863,4]
[328750819,1717765844625,-500.0,0.00029863,4]
[328750820,1717765844634,-500.0,0.00029863,4]
[328750821,1717765844644,-500.0,0.00029863,4]
[328750822,1717765844813,-500.0,0.00029863,4]
[328750823,1717765844823,-500.0,0.00029863,4]
[328750824,1717765844833,-500.0,0.00029863,4]
[328750825,1717765844842,-500.0,0.00029863,4]
[328750826,1717765844852,-500.0,0.00029863,4]
[328750827,1717765844862,-500.0,0.00029863,4]
[328750828,1717765844871,-248.11,0.00029863,4]
[328750830,1717765844881,-500.0,0.00029863,4]
[328750831,1717765844890,-500.0,0.00029863,4]
[328750832,1717765844900,-500.0,0.00029863,4]
[328750833,1717765844909,-535.21323206,0.00029863,4]
[328750834,1717765844918,-500.0,0.00029863,4]
[328750835,1717765844928,-168.57745051,0.00029863,4]